fUSD/lending_fUSD_20241121
["ID","MTS","AMOUNT","RATE_DAILY","PERIOD"]
[342930196,1732210254861,-922.38,0.00038904,11]
[342930197,1732210254870,-500.0,0.00038904,11]
[342930198,1732210254879,-2056.9,0.00038904,11]
[342930199,1732210254888,-567.66771542,0.00038904,11]
[342930200,1732210254897,-500.0,0.00038904,11]
[342930201,1732210254906,-500.0,0.00038904,11]
[342930202,1732210254915,-581.57,0.00038904,11]
[342930203,1732210254925,-2912.74,0.00038904,11]
[342930204,1732210254934,-500.0,0.00038904,11]
[342930205,1732210254943,-500.0,0.00038904,11]
[342930206,1732210254952,-500.0,0.00038904,11]
[342930207,1732210254962,-1433.4,0.00038904,11]
[342930208,1732210254971,-857.27,0.00038904,11]
[342930209,1732210254980,-660.01,0.00038904,11]
[342930210,1732210254988,-505.39,0.00038904,11]
[342930211,1732210254997,-652.74,0.00038904,11]
[342930212,1732210255006,-500.0,0.00038904,11]
[342930213,1732210255015,-527.56,0.00038904,11]
[342930214,1732210255024,-500.0,0.00038904,11]
[342930215,1732210255033,-1022.92,0.00038904,11]
[342930216,1732210255042,-584.37,0.00038904,11]
[342930217,1732210255052,-500.0,0.00038904,11]
[342930218,1732210255061,-515.32,0.00038904,11]
[342930219,1732210255071,-813.78,0.00038904,11]
[342930220,1732210255080,-500.0,0.00038904,11]
[342930221,1732210255089,-2108.57,0.00038904,11]
[342930222,1732210255098,-574.64,0.00038904,11]
[342930223,1732210255108,-500.0,0.00038904,11]
[342930224,1732210255117,-500.0,0.00038904,11]
[342930225,1732210255126,-1664.84,0.00038904,11]
[342930226,1732210255135,-3779.45,0.00038904,11]
[342930227,1732210255145,-558.72,0.00038904,11]
[342930228,1732210255154,-2329.59,0.00038904,11]
[342930229,1732210255163,-500.0,0.00038904,11]
[342930230,1732210255173,-500.0,0.00038904,11]
[342930231,1732210255184,-500.0,0.00038904,11]
[342930232,1732210255194,-500.0,0.00038904,11]
[342930233,1732210255203,-500.0,0.00038904,11]
[342930234,1732210255212,-500.0,0.00038904,11]
[342930235,1732210255221,-500.0,0.00038904,11]
[342930236,1732210255231,-500.0,0.00038904,11]
[342930237,1732210255240,-500.0,0.00038904,11]
[342930238,1732210255249,-3931.15,0.00038904,11]
[342930239,1732210255259,-500.0,0.00038904,11]
[342930240,1732210255269,-500.0,0.00038904,11]
[342930241,1732210255279,-500.0,0.00038904,11]
[342930242,1732210255288,-1196.21,0.00038904,11]
[342930243,1732210255297,-904.02,0.00038904,11]
[342930244,1732210255307,-721.67,0.00038904,11]
[342930245,1732210255316,-500.0,0.00038904,11]
[342930246,1732210255325,-500.0,0.00038904,11]
[342930247,1732210255335,-2024.69,0.00038904,11]
[342930248,1732210255344,-500.0,0.00038904,11]
[342930249,1732210255354,-500.0,0.00038904,11]
[342930250,1732210255364,-794.12,0.00038904,7]
[342930251,1732210255373,-500.0,0.00038904,11]
[342930252,1732210255382,-4525.19,0.00038904,11]
[342930253,1732210255391,-500.0,0.00038904,11]
[342930254,1732210255400,-500.0,0.00038904,11]
[342930255,1732210255409,-500.0,0.00038904,11]
[342930256,1732210255418,-376.69747608,0.00038904,11]
[342930257,1732210255429,-500.0,0.00038904,11]
[342930258,1732210255438,-500.0,0.00038904,11]
[342930259,1732210255447,-897.8,0.00038904,11]
[342930260,1732210255456,-500.0,0.00038904,11]
[342930261,1732210255466,-12306.64,0.00038904,11]
[342930262,1732210255475,-500.0,0.00038904,11]
[342930263,1732210255484,-500.0,0.00038904,11]
[342930264,1732210255493,-500.0,0.00038904,11]
[342930265,1732210255502,-1287.17,0.00038904,11]
[342930266,1732210255511,-815.54,0.00038904,11]
[342930267,1732210255520,-898.87,0.00038904,11]
[342930268,1732210255529,-500.0,0.00038904,11]
[342930269,1732210255538,-500.0,0.00038904,11]
[342930270,1732210255546,-639.05,0.00038904,11]
[342930271,1732210255556,-1660.99,0.00038904,11]
[342930272,1732210255565,-500.0,0.00038904,11]
[342930273,1732210255574,-500.0,0.00038904,11]
[342930274,1732210255583,-660.46,0.00038904,11]
[342930275,1732210255592,-500.0,0.00038904,11]
[342930276,1732210255601,-500.0,0.00038904,11]
[342930277,1732210255610,-643.11,0.00038904,11]
[342930278,1732210255619,-589.40102349,0.00038904,11]
[342930279,1732210255628,-260.35445454,0.00038904,2]
[342930280,1732210255637,-500.0,0.00038904,11]
[342930281,1732210255647,-500.0,0.00038904,11]
[342930282,1732210255656,-500.0,0.00038904,11]
[342930283,1732210255665,-500.0,0.00038904,11]
[342930284,1732210255675,-500.0,0.00038904,11]
[342930285,1732210255684,-500.0,0.00038904,11]
[342930286,1732210255694,-500.0,0.00038904,11]
[342930287,1732210255703,-515.73,0.00038904,11]
[342930288,1732210255712,-1804.93,0.00038904,11]
[342930289,1732210255721,-500.0,0.00038904,11]
[342930290,1732210255730,-500.0,0.00038904,11]
[342930291,1732210255739,-500.0,0.00038904,11]
[342930292,1732210255748,-500.0,0.00038904,11]
[342930293,1732210255762,-856.28,0.00038904,11]
[342930294,1732210255771,-751.73,0.00038904,11]
[342930295,1732210255782,-28200.999999,0.00039,120]
[342930296,1732210255791,-14497.41983898,0.00039,2]
[342930297,1732210255801,-150.0,0.00039057,2]
[342930298,1732210255811,-150.23,0.0003907,2]
[342930299,1732210255820,-1019.94,0.00039089,2]
[342930300,1732210255829,-315.8090774,0.000391,2]
[342930301,1732210255841,-198.0,0.00039138,5]
[342930302,1732210255851,-1500.0,0.00039149,2]
[342930303,1732210255860,-3555.67760858,0.00039167,15]
[342930304,1732210255869,-500.0,0.00039178,11]
[342930305,1732210255878,-500.0,0.00039178,11]
[342930306,1732210255887,-500.0,0.00039178,11]
[342930307,1732210255896,-500.0,0.00039178,11]
[342930308,1732210255905,-500.0,0.00039178,11]
[342930309,1732210255915,-500.0,0.00039178,11]
[342930310,1732210255924,-500.0,0.00039178,11]
[342930311,1732210255937,-341.85358928,0.00039178,11]
[342930312,1732210255946,-500.0,0.00039178,11]
[342930313,1732210255955,-500.0,0.00039178,11]
[342930314,1732210255964,-500.0,0.00039178,11]
[342930315,1732210255973,-390.09116463,0.00039178,11]
[342930316,1732210255982,-500.0,0.00039178,11]
[342930317,1732210255991,-500.0,0.00039178,11]
[342930318,1732210256000,-500.0,0.00039178,11]
[342930319,1732210256009,-500.0,0.00039178,11]
[342930320,1732210256018,-500.0,0.00039178,11]
[342930321,1732210256027,-500.0,0.00039178,11]
[342930322,1732210256037,-500.0,0.00039178,11]
[342930323,1732210256046,-500.0,0.00039178,11]
[342930324,1732210256056,-225.04,0.00039178,7]
[342930325,1732210256066,-500.0,0.00039178,11]
[342930326,1732210256075,-500.0,0.00039178,11]
[342930327,1732210256084,-500.0,0.00039178,11]
[342930328,1732210256094,-500.0,0.00039178,11]
[342930329,1732210256104,-500.0,0.00039178,11]
[342930330,1732210256113,-574.8,0.00039178,11]
[342930331,1732210256123,-500.0,0.00039178,11]
[342930332,1732210256133,-500.0,0.00039178,11]
[342930333,1732210256143,-500.0,0.00039178,11]
[342930334,1732210256153,-500.0,0.00039178,11]
[342930335,1732210256163,-500.0,0.00039178,11]
[342930336,1732210256173,-500.0,0.00039178,11]
[342930337,1732210256186,-584.75,0.00039178,11]
[342930338,1732210256196,-500.0,0.00039178,11]
[342930339,1732210256205,-500.0,0.00039178,11]
[342930340,1732210256215,-500.0,0.00039178,11]
[342930341,1732210256224,-610.11,0.00039178,11]
[342930342,1732210256234,-500.0,0.00039178,11]
[342930343,1732210256244,-500.0,0.00039178,11]
[342930344,1732210256253,-500.0,0.00039178,11]
[342930345,1732210256262,-590.3,0.00039178,11]
[342930346,1732210256272,-500.0,0.00039178,11]
[342930347,1732210256281,-500.0,0.00039178,11]
[342930348,1732210256291,-500.0,0.00039178,11]
[342930349,1732210256300,-500.0,0.00039178,11]
[342930350,1732210256310,-500.0,0.00039178,11]
[342930351,1732210256319,-500.0,0.00039178,11]
[342930352,1732210256329,-693.08,0.00039178,11]
[342930353,1732210256339,-500.0,0.00039178,11]
[342930354,1732210256348,-500.0,0.00039178,11]
[342930355,1732210256358,-730.17,0.00039178,11]
[342930356,1732210256367,-500.0,0.00039178,11]
[342930357,1732210256377,-500.0,0.00039178,11]
[342930358,1732210256387,-500.0,0.00039178,11]
[342930359,1732210256396,-500.0,0.00039178,11]
[342930360,1732210256406,-828.01,0.00039178,11]
[342930361,1732210256416,-500.0,0.00039178,11]
[342930362,1732210256425,-500.0,0.00039178,11]
[342930363,1732210256437,-500.0,0.00039178,11]
[342930364,1732210256447,-500.0,0.00039178,11]
[342930365,1732210256457,-500.0,0.00039178,11]
[342930366,1732210256466,-500.0,0.00039178,11]
[342930367,1732210256477,-500.0,0.00039178,11]
[342930368,1732210256486,-500.0,0.00039178,11]
[342930369,1732210256497,-500.0,0.00039178,11]
[342930370,1732210256507,-500.0,0.00039178,11]
[342930371,1732210256517,-609.78,0.00039178,11]
[342930372,1732210256526,-500.0,0.00039178,11]
[342930373,1732210256536,-300.0,0.00039178,11]
[342930374,1732210256546,-500.0,0.00039178,11]
[342930375,1732210256556,-500.0,0.00039178,11]
[342930376,1732210256565,-500.0,0.00039178,11]
[342930377,1732210256574,-561.96,0.00039178,11]
[342930378,1732210256584,-1000.0,0.00039178,11]
[342930379,1732210256593,-534.23,0.00039178,11]
[342930380,1732210256602,-302.72,0.00039178,11]
[342930381,1732210256612,-602.41,0.00039178,11]
[342930382,1732210256621,-500.0,0.00039178,11]
[342930383,1732210256630,-500.0,0.00039178,11]
[342930384,1732210256639,-500.0,0.00039178,11]
[342930385,1732210256649,-597.09,0.00039178,11]
[342930386,1732210256658,-500.0,0.00039178,11]
[342930387,1732210256667,-526.42,0.00039178,11]
[342930388,1732210256677,-500.0,0.00039178,11]
[342930389,1732210256687,-500.0,0.00039178,11]
[342930390,1732210256697,-500.0,0.00039178,11]
[342930391,1732210256707,-500.0,0.00039178,11]
[342930392,1732210256716,-500.0,0.00039178,11]
[342930393,1732210256726,-500.0,0.00039178,11]
[342930394,1732210256736,-500.0,0.00039178,11]
[342930395,1732210256746,-500.0,0.00039178,11]
[342930396,1732210256760,-500.0,0.00039178,11]
[342930397,1732210256769,-289.63456405,0.00039178,11]
[342930398,1732210256778,-500.0,0.00039178,11]
[342930399,1732210256788,-500.0,0.00039178,11]
[342930400,1732210256798,-552.2529032,0.00039178,11]
[342930401,1732210256809,-560.92,0.00039178,11]
[342930402,1732210256819,-500.0,0.00039178,11]
[342930403,1732210256829,-445.18871222,0.00039178,11]
[342930404,1732210256841,-608.28,0.00039178,11]
[342930405,1732210256852,-500.0,0.00039178,11]
[342930406,1732210256862,-500.0,0.00039178,11]
[342930407,1732210256871,-500.0,0.00039178,11]
[342930408,1732210256881,-500.0,0.00039178,11]
[342930409,1732210256892,-500.0,0.00039178,11]
[342930410,1732210256901,-500.0,0.00039178,11]
[342930411,1732210256912,-500.0,0.00039178,11]
[342930412,1732210256922,-537.67,0.00039178,11]
[342930413,1732210256933,-500.0,0.00039178,11]
[342930414,1732210256943,-500.0,0.00039178,11]
[342930415,1732210256953,-502.0,0.00039178,11]
[342930416,1732210256963,-603.82,0.00039178,11]
[342930417,1732210256972,-500.0,0.00039178,11]
[342930418,1732210256982,-500.0,0.00039178,11]
[342930419,1732210256992,-500.0,0.00039178,11]
[342930420,1732210257002,-552.31,0.00039178,11]
[342930421,1732210257012,-728.81,0.00039178,11]
[342930422,1732210257022,-500.0,0.00039178,11]
[342930423,1732210257032,-500.0,0.00039178,11]
[342930424,1732210257042,-500.0,0.00039178,11]
[342930425,1732210257051,-500.0,0.00039178,11]
[342930426,1732210257061,-500.0,0.00039178,11]
[342930427,1732210257071,-703.69,0.00039178,11]
[342930428,1732210257081,-535.45,0.00039178,11]
[342930429,1732210257092,-500.0,0.00039178,11]
[342930430,1732210257102,-500.0,0.00039178,11]
[342930431,1732210257112,-500.0,0.00039178,11]
[342930432,1732210257122,-759.87,0.00039178,11]
[342930433,1732210257132,-500.0,0.00039178,11]
[342930434,1732210257142,-701.78,0.00039178,11]
[342930435,1732210257152,-605.95,0.00039178,11]
[342930436,1732210257161,-500.0,0.00039178,11]
[342930437,1732210257171,-493.40727077,0.00039178,11]
[342930438,1732210257188,-500.0,0.00039178,11]
[342930439,1732210257199,-500.0,0.00039178,11]
[342930440,1732210257209,-500.0,0.00039178,11]
[342930441,1732210257220,-593.24,0.00039178,11]
[342930442,1732210257231,-500.0,0.00039178,11]
[342930443,1732210257240,-500.0,0.00039178,11]
[342930444,1732210257250,-526.23,0.00039178,11]
[342930445,1732210257260,-500.0,0.00039178,11]
[342930446,1732210257270,-500.0,0.00039178,11]
[342930447,1732210257279,-815.09,0.00039178,11]
[342930448,1732210257290,-500.0,0.00039178,11]
[342930449,1732210257301,-545.99,0.00039178,11]
[342930450,1732210257311,-602.84,0.00039178,11]
[342930451,1732210257321,-500.0,0.00039178,11]
[342930452,1732210257331,-500.0,0.00039178,11]
[342930453,1732210257341,-500.0,0.00039178,11]
[342930454,1732210257351,-500.0,0.00039178,11]
[342930455,1732210257362,-605.03,0.00039178,11]
[342930456,1732210257372,-500.0,0.00039178,11]
[342930457,1732210257384,-500.0,0.00039178,11]
[342930458,1732210257394,-500.0,0.00039178,11]
[342930459,1732210257405,-500.0,0.00039178,11]
[342930460,1732210257415,-1246.63,0.00039178,11]
[342930461,1732210257427,-500.0,0.00039178,11]
[342930462,1732210257439,-500.0,0.00039178,11]
[342930463,1732210257449,-500.0,0.00039178,11]
[342930464,1732210257459,-598.18,0.00039178,11]
[342930465,1732210257469,-500.0,0.00039178,11]
[342930466,1732210257479,-1268.36,0.00039178,11]
[342930467,1732210257489,-800.15,0.00039178,11]
[342930468,1732210257498,-1024.7,0.00039178,11]
[342930469,1732210257508,-500.0,0.00039178,11]
[342930470,1732210257517,-500.0,0.00039178,11]
[342930471,1732210257527,-708.2,0.00039178,11]
[342930472,1732210257537,-500.0,0.00039178,11]
[342930473,1732210257547,-500.0,0.00039178,11]
[342930474,1732210257557,-500.0,0.00039178,11]
[342930475,1732210257567,-500.0,0.00039178,11]
[342930476,1732210257577,-500.0,0.00039178,11]
[342930477,1732210257587,-887.84,0.00039178,11]
[342930478,1732210257597,-748.95,0.00039178,11]
[342930479,1732210257607,-625.3,0.00039178,11]
[342930480,1732210257617,-500.0,0.00039178,11]
[342930481,1732210257627,-562.06,0.00039178,11]
[342930482,1732210257637,-696.5,0.00039178,11]
[342930483,1732210257647,-500.0,0.00039178,11]
[342930484,1732210257657,-500.0,0.00039178,11]
[342930485,1732210257667,-500.0,0.00039178,11]
[342930486,1732210257677,-500.0,0.00039178,11]
[342930487,1732210257689,-662.39,0.00039178,11]
[342930488,1732210257699,-358.9547816,0.00039178,11]
[342930489,1732210257709,-500.0,0.00039178,11]
[342930490,1732210257719,-230.95603842,0.00039178,11]
[342930491,1732210257729,-575.84,0.00039178,11]
[342930492,1732210257738,-500.0,0.00039178,11]
[342930493,1732210257749,-517.28,0.00039178,11]
[342930494,1732210257761,-602.81,0.00039178,11]
[342930495,1732210257770,-500.0,0.00039178,11]
[342930496,1732210257781,-500.0,0.00039178,11]
[342930497,1732210257790,-500.0,0.00039178,11]
[342930498,1732210257800,-500.0,0.00039178,11]
[342930499,1732210257811,-500.0,0.00039178,11]
[342930500,1732210257821,-624.49,0.00039178,11]
[342930501,1732210257832,-500.0,0.00039178,11]
[342930502,1732210257842,-500.0,0.00039178,11]
[342930503,1732210257852,-500.0,0.00039178,11]
[342930504,1732210257862,-500.0,0.00039178,11]
[342930505,1732210257871,-500.0,0.00039178,11]
[342930506,1732210257882,-890.31,0.00039178,11]
[342930507,1732210257891,-500.0,0.00039178,11]
[342930508,1732210257901,-500.0,0.00039178,11]
[342930509,1732210257910,-1406.57,0.00039178,11]
[342930510,1732210257920,-9875.74,0.00039178,2]
[342930511,1732210257930,-500.0,0.00039178,11]
[342930512,1732210257944,-500.0,0.00039178,11]
[342930513,1732210257953,-1500.25,0.00039178,11]
[342930514,1732210257964,-500.0,0.00039178,11]
[342930515,1732210257974,-868.47,0.00039178,11]
[342930516,1732210257983,-500.0,0.00039178,11]
[342930517,1732210257994,-1073.37,0.00039178,11]
[342930518,1732210258003,-456.17706751,0.00039178,11]
[342930519,1732210258015,-500.0,0.00039178,11]
[342930520,1732210258025,-500.0,0.00039178,11]
[342930521,1732210258036,-756.78,0.00039178,11]
[342930522,1732210258046,-500.0,0.00039178,11]
[342930523,1732210258057,-500.0,0.00039178,11]
[342930524,1732210258067,-1264.04,0.00039178,11]
[342930525,1732210258078,-723.44,0.00039178,11]
[342930526,1732210258089,-1164.27,0.00039178,11]
[342930527,1732210258099,-500.0,0.00039178,11]
[342930528,1732210258110,-647.62,0.00039178,11]
[342930529,1732210258120,-500.0,0.00039178,11]
[342930530,1732210258130,-500.0,0.00039178,11]
[342930531,1732210258141,-852.66,0.00039178,11]
[342930532,1732210258151,-500.0,0.00039178,11]
[342930533,1732210258160,-1951.28,0.00039178,11]
[342930534,1732210258170,-500.0,0.00039178,11]
[342930535,1732210258184,-500.0,0.00039178,11]
[342930536,1732210258197,-2111.16,0.00039178,11]
[342930537,1732210258207,-1857.8,0.00039178,11]
[342930538,1732210258218,-9039.41,0.00039178,11]
[342930539,1732210258228,-500.0,0.00039178,11]
[342930540,1732210258238,-500.0,0.00039178,11]
[342930541,1732210258249,-610.75,0.00039178,11]
[342930542,1732210258259,-500.0,0.00039178,11]
[342930543,1732210258269,-556.13,0.00039178,11]
[342930544,1732210258278,-500.0,0.00039178,11]
[342930545,1732210258289,-500.0,0.00039178,11]
[342930546,1732210258299,-500.0,0.00039178,11]
[342930547,1732210258309,-500.0,0.00039178,11]
[342930548,1732210258319,-2046.35,0.00039178,11]
[342930549,1732210258330,-500.0,0.00039178,11]
[342930550,1732210258580,-500.0,0.00039178,11]
[342930551,1732210258590,-500.0,0.00039178,11]
[342930552,1732210258600,-500.0,0.00039178,11]
[342930553,1732210258610,-519.48,0.00039178,11]
[342930554,1732210258620,-500.0,0.00039178,11]
[342930555,1732210258630,-599.11,0.00039178,11]
[342930556,1732210258639,-500.0,0.00039178,11]
[342930557,1732210258649,-1240.59,0.00039178,11]
[342930558,1732210258658,-1225.35,0.00039178,11]
[342930559,1732210258668,-500.0,0.00039178,11]
[342930560,1732210258677,-500.0,0.00039178,11]
[342930561,1732210258689,-984.48,0.00039178,11]
[342930562,1732210258699,-500.0,0.00039178,11]
[342930563,1732210258708,-500.0,0.00039178,11]
[342930564,1732210258718,-500.0,0.00039178,11]
[342930565,1732210258727,-500.0,0.00039178,120]
[342930566,1732210258736,-500.0,0.00039178,11]
[342930567,1732210258746,-478.23858106,0.00039178,11]
[342930568,1732210258757,-779.37,0.00039178,11]
[342930569,1732210258767,-985.32,0.00039178,11]
[342930570,1732210258777,-725.66,0.00039178,11]
[342930571,1732210258787,-1197.37,0.00039178,11]
[342930572,1732210258798,-500.0,0.00039178,11]
[342930573,1732210258808,-500.0,0.00039178,11]
[342930574,1732210258817,-361.91282145,0.00039178,11]
[342930575,1732210258827,-3093.19,0.00039178,11]
[342930576,1732210258838,-500.0,0.00039178,11]
[342930577,1732210258847,-500.0,0.00039178,11]
[342930578,1732210258856,-1700.89,0.00039178,11]
[342930579,1732210258866,-1350.29,0.00039178,11]
[342930580,1732210258876,-790.01,0.00039178,11]
[342930581,1732210258885,-1047.03,0.00039178,11]
[342930582,1732210258894,-500.0,0.00039178,11]
[342930583,1732210258904,-500.0,0.00039178,11]
[342930584,1732210258914,-1055.86,0.00039178,11]
[342930585,1732210258925,-500.0,0.00039178,11]
[342930586,1732210258937,-500.0,0.00039178,11]
[342930587,1732210258947,-500.0,0.00039178,7]
[342930588,1732210258956,-500.0,0.00039178,11]
[342930589,1732210258965,-760.51,0.00039178,11]
[342930590,1732210258975,-500.0,0.00039178,11]
[342930591,1732210258989,-500.0,0.00039178,11]
[342930592,1732210259000,-1244.04,0.00039178,11]
[342930593,1732210259012,-1221.84,0.00039178,11]
[342930594,1732210259021,-500.0,0.00039178,11]
[342930595,1732210259032,-1054.97,0.00039178,11]
[342930596,1732210259042,-500.0,0.00039178,11]
[342930597,1732210259052,-1282.37,0.00039178,11]
[342930598,1732210259062,-500.0,0.00039178,11]
[342930599,1732210259073,-500.0,0.00039178,11]
[342930600,1732210259084,-3596.65,0.00039178,11]
[342930601,1732210259094,-500.0,0.00039178,11]
[342930602,1732210259105,-500.0,0.00039178,11]
[342930603,1732210259114,-500.0,0.00039178,11]
[342930604,1732210259125,-1509.38,0.00039178,11]
[342930605,1732210259135,-1145.26,0.00039178,11]
[342930606,1732210259145,-1009.48,0.00039178,11]
[342930607,1732210259155,-922.38,0.00039178,11]
[342930608,1732210259165,-500.0,0.00039178,11]
[342930609,1732210259175,-2056.9,0.00039178,11]
[342930610,1732210259187,-500.0,0.00039178,11]
[342930611,1732210259198,-500.0,0.00039178,11]
[342930612,1732210259208,-500.0,0.00039178,11]
[342930613,1732210259217,-2912.74,0.00039178,11]
[342930614,1732210259227,-500.0,0.00039178,11]
[342930615,1732210259237,-1433.4,0.00039178,11]
[342930616,1732210259246,-857.27,0.00039178,11]
[342930617,1732210259255,-660.01,0.00039178,11]
[342930618,1732210259265,-505.39,0.00039178,11]
[342930619,1732210259274,-652.74,0.00039178,11]
[342930620,1732210259284,-527.56,0.00039178,11]
[342930621,1732210259295,-500.0,0.00039178,11]
[342930622,1732210259304,-1022.92,0.00039178,11]
[342930623,1732210259314,-584.37,0.00039178,11]
[342930624,1732210259323,-500.0,0.00039178,11]
[342930625,1732210259333,-515.32,0.00039178,11]
[342930626,1732210259343,-813.78,0.00039178,11]
[342930627,1732210259353,-500.0,0.00039178,11]
[342930628,1732210259363,-2108.57,0.00039178,11]
[342930629,1732210259373,-574.64,0.00039178,11]
[342930630,1732210259383,-500.0,0.00039178,11]
[342930631,1732210259393,-500.0,0.00039178,11]
[342930632,1732210259403,-1664.84,0.00039178,11]
[342930633,1732210259413,-3779.45,0.00039178,11]
[342930634,1732210259423,-558.72,0.00039178,11]
[342930635,1732210259435,-2329.59,0.00039178,11]
[342930636,1732210259445,-500.0,0.00039178,11]
[342930637,1732210259455,-500.0,0.00039178,11]
[342930638,1732210259464,-437.63161976,0.00039178,11]
[342930639,1732210259474,-500.0,0.00039178,11]
[342930640,1732210259485,-500.0,0.00039178,11]
[342930641,1732210259496,-500.0,0.00039178,11]
[342930642,1732210259505,-500.0,0.00039178,11]
[342930643,1732210259516,-500.0,0.00039178,11]
[342930644,1732210259526,-3931.15,0.00039178,11]
[342930645,1732210259536,-500.0,0.00039178,11]
[342930646,1732210259547,-500.0,0.00039178,11]
[342930647,1732210259557,-1196.21,0.00039178,11]
[342930648,1732210259568,-904.02,0.00039178,11]
[342930649,1732210259577,-721.67,0.00039178,11]
[342930650,1732210259588,-500.0,0.00039178,11]
[342930651,1732210259598,-2024.69,0.00039178,11]
[342930652,1732210259607,-500.0,0.00039178,11]
[342930653,1732210259618,-500.0,0.00039178,11]
[342930654,1732210259628,-794.12,0.00039178,7]
[342930655,1732210259637,-4525.19,0.00039178,11]
[342930656,1732210259646,-500.0,0.00039178,11]
[342930657,1732210259655,-500.0,0.00039178,11]
[342930658,1732210259665,-500.0,0.00039178,11]
[342930659,1732210259674,-500.0,0.00039178,11]
[342930660,1732210259686,-500.0,0.00039178,11]
[342930661,1732210259695,-897.8,0.00039178,11]
[342930662,1732210259705,-500.0,0.00039178,11]
[342930663,1732210259715,-12306.64,0.00039178,11]
[342930664,1732210259725,-500.0,0.00039178,11]
[342930665,1732210259734,-500.0,0.00039178,11]
[342930666,1732210259744,-500.0,0.00039178,11]
[342930667,1732210259753,-1287.17,0.00039178,11]
[342930668,1732210259766,-815.54,0.00039178,11]
[342930669,1732210259775,-898.87,0.00039178,11]
[342930670,1732210259785,-500.0,0.00039178,11]
[342930671,1732210259794,-500.0,0.00039178,11]
[342930672,1732210259805,-639.05,0.00039178,11]
[342930673,1732210259815,-1660.99,0.00039178,11]
[342930674,1732210259824,-500.0,0.00039178,11]
[342930675,1732210259836,-500.0,0.00039178,11]
[342930676,1732210259845,-660.46,0.00039178,11]
[342930677,1732210259854,-500.0,0.00039178,11]
[342930678,1732210259864,-500.0,0.00039178,11]
[342930679,1732210259874,-643.11,0.00039178,11]
[342930680,1732210259884,-500.0,0.00039178,11]
[342930681,1732210259893,-500.0,0.00039178,11]
[342930682,1732210259904,-500.0,0.00039178,11]
[342930683,1732210259913,-500.0,0.00039178,11]
[342930684,1732210259923,-500.0,0.00039178,11]
[342930685,1732210259934,-267.28741179,0.00039178,11]
[342930686,1732210259943,-617.14942998,0.00039178,11]
[342930687,1732210259953,-515.73,0.00039178,11]
[342930688,1732210259963,-1804.93,0.00039178,11]
[342930689,1732210259973,-500.0,0.00039178,11]
[342930690,1732210259982,-500.0,0.00039178,11]
[342930691,1732210259992,-500.0,0.00039178,11]
[342930692,1732210260002,-500.0,0.00039178,11]
[342930693,1732210260012,-856.28,0.00039178,11]
[342930694,1732210260022,-751.73,0.00039178,11]
[342930695,1732210260032,-642.95145482,0.00039221,5]